bitfinex-derivatives/quotes_BTCF0:USTF0_20240903
["timestamp","ask_amount","ask_price","bid_price","bid_amount"]
[1725368241172,0.37952315,59191.0,59190.0,0.00285327]
[1725368243279,0.46399915,59191.0,59190.0,0.00285327]
[1725368244180,0.46399915,59191.0,59179.0,0.9457]
[1725368244181,0.168966,59186.0,59179.0,0.9457]
[1725368244382,0.084489,59182.0,59181.0,0.0039]
[1725368244687,0.084496,59177.0,59175.0,0.0039]
[1725368244887,0.084496,59177.0,59172.0,0.679203]
[1725368247488,0.084498,59176.0,59172.0,0.679203]
[1725368247688,0.084499,59175.0,59172.0,0.675303]
[1725368248088,0.073499,59175.0,59172.0,0.5908]
[1725368248585,0.073499,59175.0,59172.0,0.5998]
[1725368248984,0.074499,59175.0,59172.0,0.690303]
[1725368249291,0.084501,59174.0,59172.0,0.690303]
[1725368249784,0.002,59175.0,59172.0,0.690303]
[1725368249785,0.084502,59173.0,59172.0,0.690303]
[1725368250782,0.084502,59173.0,59172.0,0.460303]
[1725368251178,0.084502,59173.0,59172.0,0.454303]
[1725368251694,0.084502,59173.0,59172.0,0.001]
[1725368251988,0.085302,59173.0,59172.0,0.001]
[1725368252392,0.085302,59173.0,59171.0,0.00025327]
[1725368252393,0.083503,59172.0,59171.0,0.00025327]
[1725368252694,0.084303,59172.0,59171.0,0.00025327]
[1725368254002,0.085303,59172.0,59171.0,0.00425327]
[1725368254498,0.086303,59172.0,59171.0,0.00425327]
[1725368255296,0.086303,59172.0,59171.0,0.08875827]
[1725368260907,0.086303,59172.0,59171.0,0.08475827]
[1725368260908,0.100303,59172.0,59171.0,0.08475827]
[1725368261801,0.099303,59172.0,59171.0,0.08475827]
[1725368262102,0.090303,59172.0,59171.0,0.08475827]
[1725368262309,0.099303,59172.0,59171.0,0.08475827]
[1725368263122,0.099303,59172.0,59171.0,0.59175827]
[1725368263809,0.099303,59172.0,59171.0,0.08475827]
[1725368264008,0.099303,59172.0,59171.0,0.08575827]
[1725368264009,0.098303,59172.0,59171.0,0.08575827]
[1725368264808,0.091303,59172.0,59171.0,0.08575827]
[1725368265003,0.095303,59172.0,59171.0,0.08575827]
[1725368265202,0.088303,59172.0,59171.0,0.08475827]
[1725368265507,0.092303,59172.0,59171.0,0.08475827]
[1725368265816,0.093303,59172.0,59171.0,0.08475827]
[1725368267115,0.095303,59172.0,59171.0,0.08575827]
[1725368276122,0.095303,59172.0,59171.0,0.15289637]
[1725368276822,0.095303,59172.0,59171.0,0.08575827]
[1725368277223,0.095303,59172.0,59171.0,0.15289637]
[1725368277615,0.095303,59172.0,59171.0,0.08575827]
[1725368278219,0.095303,59172.0,59171.0,0.15289637]
[1725368278826,0.095303,59172.0,59171.0,0.08575827]
[1725368280015,0.095303,59172.0,59171.0,0.17575827]
[1725368284033,0.0039,59180.0,59176.0,0.084497]
[1725368284329,0.0039,59186.0,59181.0,0.08449]
[1725368284530,0.768183,59187.0,59181.0,0.08449]
[1725368284531,0.084485,59185.0,59181.0,0.08449]
[1725368284735,0.08449,59181.0,59180.0,0.54]
[1725368285028,0.08449,59181.0,59180.0,0.174492]
[1725368285916,0.09849,59181.0,59180.0,0.175492]
[1725368286326,0.11249,59181.0,59180.0,0.175492]
[1725368287729,0.11249,59181.0,59180.0,0.001]
[1725368288026,1.3486496,59181.0,59180.0,0.001]
[1725368288230,2.2566496,59181.0,59180.0,0.001]
[1725368292536,1.9421596,59181.0,59180.0,0.001]
[1725368293534,1.4751596,59181.0,59180.0,0.001]
[1725368294041,1.0341596,59181.0,59180.0,0.001]
[1725368294236,1.2641596,59181.0,59180.0,0.001]
[1725368300746,1.0341596,59181.0,59180.0,0.001]
[1725368301241,1.2641596,59181.0,59180.0,0.001]
[1725368302752,0.9033596,59181.0,59180.0,0.001]
[1725368307149,0.6733596,59181.0,59180.0,0.001]
[1725368307546,0.2342596,59181.0,59180.0,0.001]
[1725368310048,0.3242596,59181.0,59180.0,0.001]
[1725368313350,0.4242596,59181.0,59180.0,0.001]
[1725368314057,0.5087496,59181.0,59180.0,0.001]
[1725368315255,0.4087496,59181.0,59180.0,0.001]
[1725368315655,0.4587496,59181.0,59180.0,0.001]
[1725368317064,0.4087496,59181.0,59180.0,0.001]
[1725368319056,0.4487496,59181.0,59180.0,0.001]
[1725368320070,0.4087496,59181.0,59180.0,0.001]
[1725368325361,0.2342596,59181.0,59180.0,0.001]
[1725368325960,0.2342596,59181.0,59180.0,0.4719]
[1725368327466,0.138,59181.0,59180.0,0.9486]
[1725368327664,0.028,59181.0,59180.0,1.033092]
[1725368329869,0.12383839,59181.0,59180.0,1.033092]
[1725368331078,0.12383839,59181.0,59180.0,1.123092]
[1725368335676,0.16383839,59181.0,59180.0,1.123092]
[1725368338579,0.16383839,59181.0,59180.0,1.033092]
[1725368338782,0.16383839,59181.0,59180.0,0.001]
[1725368340180,0.25383839,59181.0,59180.0,0.001]
[1725368341086,0.31383839,59181.0,59180.0,0.001]
[1725368342878,0.39832839,59181.0,59180.0,0.001]
[1725368343079,0.75912839,59181.0,59180.0,0.001]
[1725368344189,0.69912839,59181.0,59180.0,0.001]
[1725368344382,0.74912839,59181.0,59180.0,0.001]
[1725368344785,0.69912839,59181.0,59180.0,0.001]
[1725368345286,0.61463839,59181.0,59180.0,0.001]
[1725368345481,0.61463839,59181.0,59180.0,0.091]
[1725368346079,0.52463839,59181.0,59180.0,0.091]
[1725368346282,0.75912839,59181.0,59180.0,0.001]
[1725368348877,0.69912839,59181.0,59180.0,0.001]
[1725368349080,0.70912839,59181.0,59180.0,0.001]
[1725368349488,0.69912839,59181.0,59180.0,0.001]
[1725368350285,0.74912839,59181.0,59180.0,0.001]
[1725368355802,0.83361839,59181.0,59180.0,0.001]
[1725368356090,0.74912839,59181.0,59180.0,0.001]
[1725368364297,0.57463839,59181.0,59180.0,0.001]
[1725368364497,0.61463839,59181.0,59180.0,0.001]
[1725368366415,0.25383839,59181.0,59180.0,0.001]
[1725368366605,0.67463839,59181.0,59180.0,0.001]
[1725368371016,0.75912839,59181.0,59180.0,0.001]
[1725368373014,0.39832839,59181.0,59180.0,0.001]
[1725368373215,0.75912839,59181.0,59180.0,0.001]
[1725368373712,0.67463839,59181.0,59180.0,0.001]
[1725368374304,0.61463839,59181.0,59180.0,0.001]
[1725368374709,0.66463839,59181.0,59180.0,0.001]
[1725368379115,0.74912839,59181.0,59180.0,0.001]
[1725368380916,0.66463839,59181.0,59180.0,0.001]
[1725368381111,0.74912839,59181.0,59180.0,0.001]
[1725368382622,0.38832839,59181.0,59180.0,0.001]
[1725368383018,0.74912839,59181.0,59180.0,0.001]
[1725368383814,0.66463839,59181.0,59180.0,0.001]
[1725368384415,0.74912839,59181.0,59180.0,0.001]
[1725368385222,0.66463839,59181.0,59180.0,0.001]
[1725368385420,0.61463839,59181.0,59180.0,0.001]
[1725368385616,0.66463839,59181.0,59180.0,0.001]
[1725368390826,0.30383839,59181.0,59180.0,0.001]
[1725368391032,0.66463839,59181.0,59180.0,0.001]
[1725368392325,0.74912839,59181.0,59180.0,0.001]
[1725368393734,0.66463839,59181.0,59180.0,0.001]
[1725368394438,0.74912839,59181.0,59180.0,0.001]
[1725368396025,0.66463839,59181.0,59180.0,0.001]
[1725368396533,0.74912839,59181.0,59180.0,0.001]
[1725368396737,0.66463839,59181.0,59180.0,0.001]
[1725368397736,0.57463839,59181.0,59180.0,0.001]
[1725368397936,0.66463839,59181.0,59180.0,0.001]
[1725368398243,0.61463839,59181.0,59180.0,0.001]
[1725368398641,0.73463839,59181.0,59180.0,0.001]
[1725368400657,0.068,59181.0,59180.0,0.175492]
[1725368400842,0.3608,59193.0,59180.0,0.001]
[1725368401041,0.08448,59188.0,59187.0,0.09]
[1725368401350,0.08448,59188.0,59180.0,0.001]
[1725368401351,0.08449,59181.0,59180.0,0.001]
[1725368401539,0.69529,59181.0,59180.0,0.001]
[1725368401739,0.69569,59181.0,59180.0,0.001]
[1725368402753,0.084495,59178.0,59176.0,0.93488]
[1725368403051,0.0894,59177.0,59176.0,0.934]
[1725368403250,0.1994,59177.0,59176.0,0.934]
[1725368403948,0.1104,59177.0,59176.0,0.934]
[1725368404150,0.0004,59177.0,59176.0,1.108497]
[1725368404353,0.0004,59177.0,59176.0,2.215457]
[1725368404649,0.0004,59177.0,59176.0,1.615457]
[1725368405652,0.0004,59177.0,59176.0,2.215457]
[1725368406156,0.0004,59177.0,59176.0,2.355457]
[1725368407042,0.084488,59183.0,59182.0,0.084489]
[1725368407348,0.084488,59183.0,59182.0,0.314889]
[1725368407753,0.01142213,59185.0,59184.0,0.084486]
[1725368407954,0.00025348,59186.0,59185.0,0.084485]
[1725368408148,0.00025348,59186.0,59185.0,0.784085]
[1725368408452,0.00025348,59186.0,59185.0,0.783685]
[1725368409254,0.00525348,59186.0,59185.0,0.783685]
[1725368409447,0.00525348,59186.0,59185.0,1.144485]
[1725368409651,0.00925348,59186.0,59185.0,1.144485]
[1725368409955,0.00925348,59186.0,59185.0,0.914485]
[1725368410149,0.00925348,59186.0,59185.0,0.783685]
[1725368411359,0.00925348,59186.0,59185.0,0.784685]
[1725368411952,0.09373648,59186.0,59185.0,0.554685]
[1725368412153,0.29821948,59186.0,59185.0,0.001]
[1725368412454,0.34821948,59186.0,59185.0,0.001]
[1725368412654,0.084485,59185.0,59184.0,0.0004]
[1725368412857,0.204885,59185.0,59184.0,0.0004]
[1725368413954,0.434885,59185.0,59184.0,0.0004]
[1725368414552,0.1204,59185.0,59184.0,0.084886]
[1725368414859,0.0004,59185.0,59184.0,0.084886]
[1725368415460,0.0004,59185.0,59184.0,0.593766]
[1725368415461,0.0094,59185.0,59184.0,0.593766]
[1725368416059,0.0094,59185.0,59184.0,0.592766]
[1725368416465,0.0094,59185.0,59184.0,0.085886]
[1725368416661,0.0094,59185.0,59184.0,0.822766]
[1725368417059,0.0094,59185.0,59184.0,0.315886]
[1725368417262,0.0094,59185.0,59184.0,1.422766]
[1725368417961,0.0034,59185.0,59184.0,1.421766]
[1725368418156,0.0054,59185.0,59184.0,1.421766]
[1725368418966,0.0024,59185.0,59184.0,1.421766]
[1725368419170,0.0054,59185.0,59184.0,1.421766]
[1725368422468,0.0054,59185.0,59184.0,0.591766]
[1725368422660,0.0054,59185.0,59184.0,0.821766]
[1725368424971,0.0054,59185.0,59184.0,0.314886]
[1725368425461,0.0054,59185.0,59184.0,0.906252]
[1725368426168,0.0054,59185.0,59184.0,0.399372]
[1725368426956,0.0054,59185.0,59184.0,0.906252]
[1725368427965,0.0054,59185.0,59184.0,0.399372]
[1725368429265,0.0054,59185.0,59184.0,1.506252]
[1725368432368,0.0054,59185.0,59184.0,1.947152]
[1725368435766,0.0039,59193.0,59185.0,0.50688]
[1725368435968,0.084472,59194.0,59193.0,0.08447]
[1725368436173,0.0039,59197.0,59196.0,0.084466]
[1725368436174,0.084468,59197.0,59196.0,0.084466]
[1725368436372,0.084468,59197.0,59196.0,0.314866]
[1725368436776,0.084468,59197.0,59196.0,0.314466]
[1725368439179,0.084468,59197.0,59196.0,0.315466]
[1725368439387,0.087468,59197.0,59196.0,0.316466]
[1725368440386,0.003,59197.0,59196.0,0.316466]
[1725368440679,0.003,59197.0,59196.0,0.677266]
[1725368441880,0.003,59197.0,59196.0,0.761735]
[1725368442675,0.003,59197.0,59196.0,0.77304584]
[1725368443382,0.00025348,59202.0,59201.0,0.084462]
[1725368443574,0.00025348,59202.0,59201.0,0.675662]
[1725368445376,0.01065412,59205.0,59204.0,0.084457]
[1725368445577,0.084454,59207.0,59206.0,0.084455]
[1725368445778,0.084454,59207.0,59206.0,0.084855]
[1725368445977,0.084454,59207.0,59206.0,0.084455]
[1725368447281,0.084454,59207.0,59206.0,0.085455]
[1725368447585,0.10097556,59207.0,59206.0,0.086455]
[1725368450880,0.10097556,59207.0,59206.0,0.084455]
[1725368451086,0.253368,59205.0,59204.0,0.0004]
[1725368451288,0.493368,59205.0,59204.0,0.0004]
[1725368451484,0.493768,59205.0,59204.0,0.0004]
[1725368451883,0.383768,59205.0,59204.0,0.0004]
[1725368452482,0.493768,59205.0,59204.0,0.0004]
[1725368453178,0.084463,59200.0,59199.0,0.0039]
[1725368453380,0.3604,59200.0,59195.0,0.0039]
[1725368453685,0.084472,59194.0,59192.0,0.2304]
[1725368454079,0.0004,59194.0,59193.0,0.084873]
[1725368454287,0.0004,59194.0,59193.0,0.084473]
[1725368456489,0.0014,59194.0,59193.0,0.085473]
[1725368456886,0.0064,59194.0,59193.0,0.086473]
[1725368457088,0.0074,59194.0,59193.0,0.086473]
[1725368457988,0.091872,59194.0,59193.0,0.086473]
[1725368458295,0.091872,59194.0,59193.0,0.002]
[1725368465497,0.091872,59194.0,59193.0,0.4472]
[1725368466194,0.0074,59194.0,59193.0,0.4472]
[1725368466394,0.0074,59194.0,59193.0,0.531673]
[1725368466695,0.0074,59194.0,59193.0,1.886373]
[1725368467703,0.0004,59194.0,59193.0,1.887373]
[1725368468001,0.0004,59194.0,59193.0,1.890373]
[1725368468394,0.0004,59194.0,59193.0,1.887373]
[1725368468590,0.0014,59194.0,59193.0,1.287373]
[1725368468902,0.0014,59194.0,59193.0,1.98341832]
[1725368469290,0.0014,59194.0,59193.0,1.98041832]
[1725368469485,0.0054,59194.0,59193.0,1.98041832]
[1725368469986,0.0044,59194.0,59193.0,1.98041832]
[1725368470204,0.0014,59194.0,59193.0,1.98341832]
[1725368470791,0.0004,59194.0,59193.0,1.98541832]
[1725368471001,0.0004,59194.0,59193.0,1.98241832]
[1725368471203,0.0004,59194.0,59193.0,1.98441832]
[1725368471498,0.0004,59194.0,59193.0,2.42969132]
[1725368474403,0.0004,59194.0,59193.0,2.43069132]
[1725368474702,0.0004,59194.0,59193.0,2.43169132]
[1725368481104,0.00025348,59199.0,59193.0,2.26274532]
[1725368481304,0.00025348,59199.0,59198.0,0.844198]
[1725368481508,0.00025348,59199.0,59198.0,1.444198]
[1725368481710,0.00025348,59199.0,59198.0,1.950958]
[1725368483604,0.00225348,59199.0,59198.0,1.950958]
[1725368483801,0.00225348,59199.0,59198.0,0.084466]
[1725368484107,0.00225348,59199.0,59198.0,0.314466]
[1725368484108,0.08671848,59199.0,59198.0,0.314466]
[1725368488009,0.00225348,59199.0,59198.0,0.314466]
[1725368488413,0.08671848,59199.0,59198.0,0.084466]
[1725368488712,0.08671848,59199.0,59198.0,0.314466]
[1725368497317,0.08671848,59199.0,59198.0,0.675266]
[1725368498519,0.0039,59207.0,59206.0,0.084455]
[1725368498818,0.084449,59210.0,59206.0,0.5912]
[1725368499023,0.084449,59210.0,59209.0,0.2304]
[1725368499523,0.084449,59210.0,59209.0,0.31485]
[1725368500519,0.087449,59210.0,59209.0,0.31585]
[1725368500828,0.087449,59210.0,59209.0,0.31685]
[1725368503224,0.087449,59210.0,59209.0,0.32817141]
[1725368506929,0.087449,59210.0,59209.0,0.31685]
[1725368507521,0.087449,59210.0,59209.0,0.2324]
[1725368507723,0.171899,59210.0,59209.0,0.0024]
[1725368508113,0.087449,59210.0,59209.0,0.0024]
[1725368508732,0.087449,59210.0,59209.0,0.2324]
[1725368509930,0.087449,59210.0,59209.0,0.31685]
[1725368511122,0.003,59210.0,59209.0,0.31685]
[1725368512222,0.003,59210.0,59209.0,0.4013]
[1725368513333,0.003,59210.0,59209.0,0.31685]
[1725368513827,0.003,59210.0,59209.0,0.4013]
[1725368519429,0.003,59210.0,59209.0,0.48575]
[1725368520027,0.003,59210.0,59209.0,0.34575]
[1725368524837,0.003,59210.0,59209.0,1.45243]
[1725368525137,0.51902325,59215.0,59214.0,0.253329]
[1725368525438,0.05698724,59215.0,59214.0,0.704529]
[1725368525629,0.05698724,59215.0,59214.0,1.811169]
[1725368526036,0.0039,59223.0,59222.0,0.084432]
[1725368526236,0.0039,59231.0,59222.0,0.5912]
[1725368526535,0.350415,59234.0,59233.0,0.084416]
[1725368526741,0.346515,59234.0,59233.0,0.314416]
[1725368526944,0.346515,59234.0,59233.0,0.314816]
[1725368528033,0.346515,59234.0,59233.0,0.315816]
[1725368529342,0.35809065,59234.0,59233.0,0.315816]
[1725368529640,0.35809065,59234.0,59233.0,0.316816]
[1725368529840,0.346515,59234.0,59233.0,0.316816]
[1725368532843,0.35780787,59234.0,59233.0,0.316816]
[1725368533333,0.71860787,59234.0,59233.0,0.0024]
[1725368533738,0.80302287,59234.0,59233.0,0.0024]
[1725368534740,0.35780787,59234.0,59233.0,0.0024]
[1725368536249,0.44222287,59234.0,59233.0,0.0024]
[1725368536550,0.35780787,59234.0,59233.0,0.0024]
[1725368538952,0.80302287,59234.0,59233.0,0.0024]
[1725368539247,1.03302287,59234.0,59233.0,0.0024]
[1725368539640,1.16743787,59234.0,59233.0,0.0024]
[1725368539836,2.27391787,59234.0,59233.0,0.0024]
[1725368541044,0.253275,59227.0,59226.0,0.0039]
[1725368541349,0.253275,59227.0,59222.0,0.0004]
[1725368541350,0.23,59223.0,59222.0,0.0004]
[1725368541551,0.84449,59223.0,59222.0,0.0004]
[1725368541749,1.95105,59223.0,59222.0,0.0004]
[1725368542251,0.084438,59218.0,59217.0,0.00025327]
[1725368542447,0.445638,59218.0,59217.0,0.00025327]
[1725368544350,0.446638,59218.0,59217.0,0.00125327]
[1725368544742,0.446638,59218.0,59217.0,0.00225327]
[1725368544942,0.45803582,59218.0,59217.0,0.00225327]
[1725368545348,0.45703582,59218.0,59217.0,0.00125327]
[1725368545549,0.45903582,59218.0,59217.0,0.00225327]
[1725368545745,0.54347382,59218.0,59217.0,0.00225327]
[1725368545945,0.447638,59218.0,59217.0,0.00225327]
[1725368546551,0.447638,59218.0,59217.0,0.00125327]
[1725368546753,0.447638,59218.0,59217.0,0.00225327]
[1725368548547,0.086838,59218.0,59217.0,0.00225327]
[1725368552153,0.255714,59218.0,59217.0,0.00225327]
[1725368552351,0.255714,59218.0,59203.0,0.05461485]
[1725368552352,0.084457,59204.0,59203.0,0.088358]
[1725368552557,0.084857,59204.0,59203.0,0.084458]
[1725368552754,0.0004,59204.0,59203.0,0.314458]
[1725368554158,0.0024,59204.0,59203.0,0.314458]
[1725368555154,0.084857,59204.0,59203.0,0.314458]
[1725368555351,0.086857,59204.0,59203.0,0.32689992]
[1725368556459,0.087857,59204.0,59203.0,0.32689992]
[1725368562068,0.087857,59204.0,59203.0,0.18689992]
[1725368568259,0.00025327,59209.0,59208.0,0.084452]
[1725368568467,0.00025327,59209.0,59208.0,0.620104]
[1725368568768,0.084434,59221.0,59220.0,0.084435]
[1725368568972,0.084434,59221.0,59220.0,0.174835]
[1725368570160,0.3608,59222.0,59221.0,0.084433]
[1725368570468,0.01162664,59224.0,59223.0,0.08443]
[1725368570664,0.08467953,59226.0,59223.0,0.08483]
[1725368570967,0.00025253,59226.0,59225.0,0.174828]
[1725368571163,0.00025253,59226.0,59225.0,0.174428]
[1725368571973,0.00025253,59226.0,59225.0,0.314428]
[1725368572787,0.00025253,59226.0,59225.0,0.315428]
[1725368574461,0.00025253,59226.0,59225.0,0.314428]
[1725368577571,0.00025253,59226.0,59225.0,0.759656]
[1725368578474,0.00025253,59226.0,59225.0,0.763656]
[1725368578776,0.00025253,59226.0,59225.0,0.766656]
[1725368580277,0.00025253,59226.0,59225.0,0.762656]
[1725368580479,0.00025253,59226.0,59225.0,0.766656]
[1725368582079,0.00025253,59226.0,59225.0,0.763656]
[1725368582282,0.00025253,59226.0,59225.0,0.765656]
[1725368583882,0.00025253,59226.0,59225.0,0.764656]
[1725368584488,0.00025253,59226.0,59225.0,0.765656]
[1725368585180,0.00025253,59226.0,59225.0,1.275156]
[1725368587791,0.00025253,59226.0,59225.0,1.270156]
[1725368588092,0.00025253,59226.0,59225.0,1.277156]
[1725368588682,0.00025253,59226.0,59225.0,1.276156]
[1725368588883,0.00025253,59226.0,59225.0,1.275156]
[1725368590790,0.0039,59234.0,59225.0,2.21082]
[1725368590984,0.0039,59238.0,59233.0,0.675616]
[1725368591179,0.337307,59240.0,59239.0,0.084408]
[1725368591386,0.337307,59240.0,59239.0,0.084808]
[1725368591593,0.337307,59240.0,59239.0,0.084408]
[1725368592684,0.337307,59240.0,59239.0,0.085408]
[1725368593991,0.337307,59240.0,59239.0,0.176408]
[1725368596586,0.337307,59240.0,59239.0,0.18798233]
[1725368603896,0.337307,59240.0,59239.0,0.18698233]
[1725368604603,0.337307,59240.0,59239.0,0.18598233]
[1725368614311,0.337307,59240.0,59239.0,0.174408]
[1725368621703,0.337307,59240.0,59239.0,0.175408]
[1725368623009,0.084407,59240.0,59239.0,0.175408]
[1725368623706,0.084401,59246.0,59245.0,0.084398]
[1725368623907,0.084401,59246.0,59245.0,0.174798]
[1725368625707,0.084401,59246.0,59245.0,0.175798]
[1725368626509,0.084401,59246.0,59245.0,0.176798]
[1725368629908,0.084401,59246.0,59245.0,0.18826453]
[1725368631212,0.084401,59246.0,59245.0,0.176798]
[1725368632806,0.01149531,59247.0,59245.0,0.0924]
[1725368633007,0.0039,59254.0,59246.0,0.3612]
[1725368633205,0.084386,59254.0,59253.0,0.535584]
[1725368633621,0.084386,59254.0,59253.0,0.445184]
[1725368633828,0.084386,59254.0,59253.0,0.535184]
[1725368634911,0.084386,59254.0,59253.0,0.536184]
[1725368635507,0.084386,59254.0,59253.0,0.175384]
[1725368636112,0.168772,59254.0,59253.0,0.002]
[1725368636315,1.275052,59254.0,59253.0,0.002]
[1725368636513,0.675052,59254.0,59253.0,0.002]
[1725368636718,0.68668664,59254.0,59253.0,0.002]
[1725368637509,0.18040664,59254.0,59253.0,0.002]
[1725368637720,0.68668664,59254.0,59253.0,0.002]
[1725368639017,0.18040664,59254.0,59253.0,0.002]
[1725368645529,1.28668664,59254.0,59253.0,0.002]
[1725368645821,1.28668664,59254.0,59248.0,0.00025327]
[1725368645822,0.168786,59249.0,59248.0,0.00025327]
[1725368646024,0.259186,59249.0,59248.0,0.00025327]
[1725368646518,0.502386,59249.0,59248.0,0.00025327]
[1725368647226,0.502386,59249.0,59248.0,0.00125327]
[1725368647429,0.503386,59249.0,59248.0,0.00225327]
[1725368647624,0.085793,59249.0,59248.0,0.09225327]
[1725368648213,0.085793,59249.0,59248.0,0.67014827]
[1725368649122,0.170186,59249.0,59248.0,0.00225327]
[1725368649326,0.413386,59249.0,59248.0,0.00225327]
[1725368649628,0.414386,59249.0,59248.0,0.00225327]
[1725368650125,0.498779,59249.0,59248.0,0.00225327]
[1725368650325,0.414386,59249.0,59248.0,0.00225327]
[1725368650531,0.498779,59249.0,59248.0,0.00225327]
[1725368650822,0.414386,59249.0,59248.0,0.00225327]
[1725368651427,0.498779,59249.0,59248.0,0.00225327]
[1725368651935,0.728779,59249.0,59248.0,0.00225327]
[1725368653024,0.728779,59249.0,59241.0,0.0039]
[1725368653025,0.168806,59242.0,59241.0,0.0039]
[1725368653225,0.168806,59242.0,59237.0,0.23]
[1725368653226,0.445603,59242.0,59237.0,0.23]
[1725368653437,0.3612,59242.0,59240.0,0.23]
[1725368654134,0.084405,59241.0,59240.0,0.23]
[1725368655226,0.083405,59241.0,59240.0,0.23]
[1725368655531,0.083405,59241.0,59240.0,0.314406]
[1725368655724,0.085405,59241.0,59240.0,0.314406]
[1725368656429,0.086405,59241.0,59240.0,0.314406]
[1725368659620,0.086405,59241.0,59240.0,0.084406]
[1725368660225,0.085405,59241.0,59240.0,0.314406]
[1725368660426,0.086405,59241.0,59240.0,0.314406]
[1725368661937,0.087405,59241.0,59240.0,0.314406]
[1725368662543,0.3612,59242.0,59241.0,0.084405]
[1725368663537,0.445603,59242.0,59241.0,0.084405]
[1725368663735,0.446603,59242.0,59241.0,0.084405]
[1725368665341,0.449603,59242.0,59241.0,0.085405]
[1725368665636,0.088803,59242.0,59241.0,0.085405]
[1725368665842,0.0044,59242.0,59241.0,0.085405]
[1725368666937,0.088803,59242.0,59241.0,0.085405]
[1725368667538,0.0044,59242.0,59241.0,0.085405]
[1725368671948,0.0044,59242.0,59241.0,0.175405]
[1725368672342,0.0044,59242.0,59241.0,0.25981]
[1725368675747,0.0044,59242.0,59241.0,0.344215]
[1725368675954,0.00025327,59247.0,59246.0,0.084398]
[1725368676151,0.00025327,59247.0,59246.0,0.174398]
[1725368676655,0.00025327,59247.0,59246.0,1.026596]
[1725368676843,0.00025327,59247.0,59246.0,0.942198]
[1725368677951,0.00025327,59247.0,59246.0,1.082198]
[1725368678340,0.00025327,59247.0,59246.0,1.09453342]
[1725368679246,0.00025327,59247.0,59246.0,0.61033342]
[1725368679443,0.00025327,59247.0,59246.0,0.84133342]
[1725368681748,0.00025327,59247.0,59246.0,0.92573142]
[1725368687045,0.00025327,59247.0,59246.0,1.28653142]
[1725368693758,0.00025327,59247.0,59246.0,1.37092942]
[1725368694058,0.00025327,59247.0,59246.0,1.28653142]
[1725368699460,0.00025327,59247.0,59246.0,1.28553142]
[1725368699659,0.00025327,59247.0,59246.0,1.28653142]
[1725368700049,0.00025327,59247.0,59246.0,1.14653142]
[1725368700655,0.9516,59264.0,59251.0,0.08439]
[1725368700962,0.2501,59263.0,59262.0,0.084375]
[1725368701354,0.334473,59263.0,59262.0,0.084375]
[1725368702055,0.334473,59263.0,59262.0,0.314375]
[1725368702661,0.334473,59263.0,59262.0,0.315375]
[1725368703165,0.334473,59263.0,59262.0,0.316375]
[1725368704256,0.334473,59263.0,59262.0,0.002]
[1725368705663,0.418846,59263.0,59262.0,0.002]
[1725368712264,1.839459,59263.0,59262.0,0.002]
[1725368713767,1.839459,59263.0,59262.0,0.232]
[1725368713768,0.334473,59263.0,59262.0,0.232]
[1725368714166,0.334473,59263.0,59262.0,0.316375]
[1725368715171,0.334473,59263.0,59262.0,0.32795117]
[1725368721673,0.084373,59263.0,59262.0,0.32795117]
[1725368722887,0.084371,59266.0,59265.0,0.084369]
[1725368723079,0.084371,59266.0,59265.0,0.314769]
[1725368724166,0.084371,59266.0,59265.0,0.315769]
[1725368725171,0.084371,59266.0,59265.0,0.316769]
[1725368726078,0.084371,59266.0,59265.0,0.176769]
[1725368728074,0.2681,59275.0,59265.0,0.0924]
[1725368728271,0.407256,59276.0,59275.0,0.084356]
[1725368728474,0.407256,59276.0,59275.0,0.084756]
[1725368728686,0.41900427,59276.0,59275.0,0.084756]
[1725368730878,0.41900427,59276.0,59275.0,0.085756]
[1725368731384,0.41900427,59276.0,59275.0,0.086756]
[1725368731978,0.41900427,59276.0,59275.0,0.316756]
[1725368732874,0.09610427,59276.0,59275.0,0.316756]
[1725368733693,0.09610427,59276.0,59275.0,0.0024]
[1725368733694,0.18046027,59276.0,59275.0,0.0024]
[1725368734175,1.28658027,59276.0,59275.0,0.0024]
[1725368734375,1.79988027,59276.0,59275.0,0.0024]
[1725368734681,1.19988027,59276.0,59275.0,0.0024]
[1725368734872,0.95548027,59276.0,59275.0,0.0024]
[1725368736685,0.68658027,59276.0,59275.0,0.0024]
[1725368740581,0.18046027,59276.0,59275.0,0.0024]
[1725368745080,0.54126027,59276.0,59275.0,0.0024]
[1725368749075,0.18046027,59276.0,59275.0,0.0024]
[1725368749294,0.54126027,59276.0,59275.0,0.0024]
[1725368750678,0.62561627,59276.0,59275.0,0.0024]
[1725368760091,0.62561627,59276.0,59275.0,0.2692]
[1725368764702,0.00863999,59282.0,59275.0,0.63]
[1725368764894,0.00373945,59282.0,59281.0,0.084748]
[1725368765194,0.0039,59290.0,59289.0,0.084336]
[1725368765395,0.0039,59298.0,59290.0,0.084335]
[1725368765695,0.219315,59305.0,59289.0,0.3608]
[1725368765696,0.09,59295.0,59289.0,0.3608]
[1725368765999,0.09,59295.0,59290.0,0.09]
[1725368766397,0.09,59295.0,59293.0,0.09]
[1725368766700,0.084329,59294.0,59293.0,0.09]
[1725368766896,0.084332,59292.0,59291.0,0.1392]
[1725368767296,0.084332,59292.0,59291.0,0.2292]
[1725368768693,0.084332,59292.0,59291.0,0.2302]
[1725368768993,0.084332,59292.0,59291.0,0.2292]
[1725368769190,0.084332,59292.0,59291.0,0.2302]
[1725368769991,0.084332,59292.0,59291.0,0.2312]
[1725368772898,0.084332,59292.0,59291.0,0.2302]
[1725368773085,0.084332,59292.0,59291.0,0.2312]
[1725368773612,0.619464,59292.0,59291.0,0.142]